bitfinex/quotes_BTCUSD_20220731
["timestamp","ask_amount","ask_price","bid_price","bid_amount"]
[1659289249560,0.303958,23692.0,23691.0,0.0031446]
[1659289249781,0.48725733,23693.0,23691.0,0.0011]
[1659289249991,0.303958,23692.0,23691.0,0.0011]
[1659289250272,0.52193049,23693.0,23691.0,0.0011]
[1659289250487,0.52193049,23693.0,23691.0,0.00358951]
[1659289250488,0.303958,23692.0,23691.0,0.00358951]
[1659289250711,0.40725733,23693.0,23691.0,0.00358951]
[1659289250934,0.303958,23692.0,23691.0,0.00358951]
[1659289251150,0.48725733,23693.0,23691.0,0.00358951]
[1659289251371,0.303958,23692.0,23691.0,0.00358951]
[1659289251591,0.52193049,23693.0,23691.0,0.00358951]
[1659289251833,0.303958,23692.0,23691.0,0.00358951]
[1659289252277,0.48725733,23693.0,23691.0,0.00358951]
[1659289252496,0.303958,23692.0,23691.0,0.00358951]
[1659289253005,0.303958,23692.0,23691.0,0.30358951]
[1659289253226,9.303958,23692.0,23691.0,0.00358951]
[1659289253468,9.303958,23692.0,23691.0,0.30358951]
[1659289254636,9.303958,23692.0,23691.0,0.00358951]
[1659289255091,9.382958,23692.0,23691.0,0.00358951]
[1659289255572,9.382958,23692.0,23691.0,0.00248951]
[1659289256722,9.303958,23692.0,23690.0,0.01235811]
[1659289256945,0.603958,23691.0,23690.0,0.01235811]
[1659289257196,9.079,23692.0,23689.0,0.00448951]
[1659289257417,9.079,23692.0,23689.0,0.01728471]
[1659289257652,9.079,23692.0,23689.0,0.10991851]
[1659289258273,9.0,23692.0,23689.0,0.10991851]
[1659289258946,9.08,23692.0,23689.0,0.10991851]
[1659289259185,0.45,23691.0,23689.0,0.08182251]
[1659289259409,0.45,23691.0,23689.0,0.20932251]
[1659289259634,9.08,23692.0,23689.0,0.20932251]
[1659289259879,9.08,23692.0,23689.0,0.1275]
[1659289260097,9.08260602,23692.0,23690.0,0.0024927]
[1659289260324,8.99760602,23692.0,23690.0,0.0024927]
[1659289260682,0.303958,23691.0,23690.0,0.0024927]
[1659289260904,9.48755235,23692.0,23689.0,0.3]
[1659289261119,0.303958,23691.0,23689.0,0.3]
[1659289261329,0.33467316,23690.0,23689.0,0.3]
[1659289261541,0.3,23690.0,23689.0,0.3]
[1659289261784,0.3,23690.0,23688.0,0.44224406]
[1659289262199,0.33467316,23690.0,23688.0,0.44224406]
[1659289262398,0.3,23690.0,23688.0,0.44224406]
[1659289262999,0.38,23690.0,23688.0,0.44224406]
[1659289263231,0.41467316,23690.0,23688.0,0.14224406]
[1659289263701,0.41467316,23690.0,23688.0,0.57134406]
[1659289263936,0.38,23690.0,23688.0,0.57134406]
[1659289264454,0.3,23690.0,23688.0,0.57134406]
[1659289264667,0.3,23690.0,23689.0,0.105427]
[1659289264917,0.38,23690.0,23689.0,0.105427]
[1659289265123,0.38,23690.0,23688.0,0.88763006]
[1659289265350,0.38,23690.0,23688.0,0.78219706]
[1659289265574,0.38,23690.0,23689.0,0.10543]
[1659289266000,0.38,23690.0,23689.0,0.316289]
[1659289266250,0.3,23690.0,23689.0,0.616289]
[1659289266979,0.08,23690.0,23689.0,0.743789]
[1659289267888,8.8630755,23692.0,23691.0,0.75493668]
[1659289268127,8.8630755,23692.0,23691.0,2.8621339]
[1659289268128,1.58379006,23692.0,23691.0,2.8621339]
[1659289268394,1.00549637,23692.0,23691.0,3.4236154]
[1659289268628,0.00456225,23692.0,23691.0,12.01244066]
[1659289268876,0.25067335,23703.0,23702.0,0.05493668]
[1659289269099,0.25067335,23703.0,23693.0,1.05]
[1659289269100,0.25067335,23703.0,23697.0,0.4]
[1659289269334,0.25067335,23703.0,23698.0,0.70725733]
[1659289269572,0.25067335,23703.0,23698.0,0.3]
[1659289269800,0.62717895,23703.0,23698.0,0.3]
[1659289270033,0.62717895,23703.0,23699.0,0.26026603]
[1659289270253,0.62717895,23703.0,23699.0,0.05]
[1659289270493,0.62717895,23703.0,23698.0,0.05]
[1659289270729,0.62717895,23703.0,23697.0,0.35]
[1659289270956,0.62717895,23703.0,23699.0,0.036]
[1659289271437,0.62717895,23703.0,23699.0,0.352151]
[1659289271659,0.4108842,23703.0,23700.0,0.3]
[1659289271902,0.5719,23707.0,23700.0,0.3]
[1659289271903,0.5719,23707.0,23702.0,0.35493668]
[1659289272195,1.0983,23709.0,23708.0,0.05493668]
[1659289272415,1.0983,23709.0,23703.0,0.70725733]
[1659289272416,0.49934419,23709.0,23705.0,0.105365]
[1659289272674,0.49934419,23709.0,23705.0,0.455365]
[1659289272897,0.49934419,23709.0,23708.0,0.06]
[1659289273133,0.654,23710.0,23708.0,0.06]
[1659289273359,1.06125733,23710.0,23708.0,0.06]
[1659289273584,1.09593049,23710.0,23708.0,0.06]
[1659289274259,1.06125733,23710.0,23708.0,0.06]
[1659289274719,1.06125733,23710.0,23706.0,0.35]
[1659289274935,1.06125733,23710.0,23708.0,0.054]
[1659289275147,1.06125733,23710.0,23708.0,0.1814]
[1659289275741,1.09593049,23710.0,23708.0,0.1814]
[1659289275957,1.06125733,23710.0,23708.0,0.1814]
[1659289276172,1.06364821,23710.0,23708.0,0.1274]
[1659289276384,1.06364821,23710.0,23708.0,0.1774]
[1659289276864,1.09832137,23710.0,23708.0,0.2314]
[1659289277092,1.06364821,23710.0,23708.0,0.1814]
[1659289277705,0.65639088,23710.0,23708.0,0.2314]
[1659289277889,0.65639088,23710.0,23708.0,0.1814]
[1659289278083,0.65639088,23710.0,23708.0,0.2314]
[1659289278316,0.69106404,23710.0,23708.0,0.2314]
[1659289278757,0.69106404,23710.0,23708.0,0.1774]
[1659289278758,0.303958,23709.0,23708.0,0.1774]
[1659289278944,0.69106404,23710.0,23708.0,0.2314]
[1659289279071,0.70725733,23709.0,23708.0,0.1814]
[1659289280218,1.01121533,23709.0,23708.0,0.1274]
[1659289280452,1.01121533,23709.0,23707.0,0.00331139]
[1659289280661,0.76121533,23708.0,23707.0,0.00331139]
[1659289281335,0.76121533,23708.0,23705.0,0.01252846]
[1659289281538,0.71121533,23707.0,23704.0,0.13080816]
[1659289281739,0.74588849,23706.0,23704.0,0.13080816]
[1659289281970,0.76121533,23705.0,23704.0,0.13080816]
[1659289282418,0.71121533,23705.0,23704.0,0.13080816]
[1659289282627,0.40725733,23705.0,23704.0,0.14341923]
[1659289282841,0.71121533,23705.0,23704.0,0.22341923]
[1659289283071,0.71121533,23705.0,23704.0,0.52341923]
[1659289283291,0.40725733,23705.0,23704.0,0.52341923]
[1659289283507,0.71121533,23705.0,23704.0,0.52341923]
[1659289283782,0.40725733,23705.0,23704.0,0.52341923]
[1659289283993,0.71121533,23705.0,23704.0,0.52341923]
[1659289284194,0.71121533,23705.0,23704.0,0.44341923]
[1659289284858,0.71121533,23705.0,23704.0,0.47041923]
[1659289285532,0.71121533,23705.0,23704.0,0.17041923]
[1659289285741,0.71361951,23705.0,23704.0,0.17041923]
[1659289286183,0.71361951,23705.0,23704.0,0.14341923]
[1659289286869,0.71361951,23705.0,23704.0,0.17041923]
[1659289287113,0.75793951,23705.0,23704.0,0.17041923]
[1659289288236,0.71361951,23705.0,23704.0,0.14341923]
[1659289288457,0.71361951,23705.0,23704.0,0.19341923]
[1659289288699,0.40966151,23705.0,23704.0,0.14341923]
[1659289288908,0.40966151,23705.0,23704.0,0.17041923]
[1659289289115,0.71361951,23705.0,23704.0,0.17041923]
[1659289289534,0.40966151,23705.0,23704.0,0.17041923]
[1659289289739,0.71361951,23705.0,23704.0,0.17041923]
[1659289290834,0.71361951,23705.0,23704.0,0.22141923]
[1659289291655,0.40966151,23705.0,23704.0,0.22141923]
[1659289291864,0.30636218,23705.0,23704.0,0.22141923]
[1659289292066,0.00240418,23705.0,23704.0,0.22141923]
[1659289292273,0.00240418,23705.0,23704.0,0.14341923]
[1659289292933,0.00240418,23705.0,23704.0,0.19441923]
[1659289293141,0.45398151,23705.0,23704.0,0.19441923]
[1659289293350,0.75793951,23705.0,23704.0,0.49441923]
[1659289293572,0.75793951,23705.0,23704.0,0.06691923]
[1659289293573,0.71361951,23705.0,23704.0,0.06691923]
[1659289294076,0.30636218,23705.0,23704.0,0.19441923]
[1659289294287,0.00240418,23705.0,23704.0,0.14341923]
[1659289294532,0.00229132,23705.0,23704.0,0.14341923]
[1659289294971,0.00229132,23705.0,23704.0,0.22341923]
[1659289296308,0.00229132,23705.0,23704.0,0.14341923]
[1659289296938,0.00229132,23705.0,23704.0,0.22341923]
[1659289298202,0.00229132,23705.0,23704.0,0.14341923]
[1659289298821,0.00229132,23705.0,23704.0,0.22241923]
[1659289300119,0.00229132,23705.0,23704.0,0.14341923]
[1659289300554,0.00229132,23705.0,23704.0,0.14379867]
[1659289300985,0.00229132,23705.0,23704.0,0.22179867]
[1659289301205,0.03696448,23705.0,23704.0,0.22141923]
[1659289301640,0.00229132,23705.0,23704.0,0.22141923]
[1659289302095,0.00229132,23705.0,23704.0,0.14341923]
[1659289303040,0.00229132,23705.0,23704.0,0.22141923]
[1659289304314,0.00229132,23705.0,23704.0,0.14341923]
[1659289304995,0.00229132,23705.0,23704.0,0.20441923]
[1659289305199,0.03696448,23705.0,23704.0,0.20441923]
[1659289305635,0.00229132,23705.0,23704.0,0.20441923]
[1659289306874,0.00229132,23705.0,23704.0,0.14341923]
[1659289307075,0.00229132,23705.0,23704.0,0.20441923]
[1659289307188,0.03696448,23705.0,23704.0,0.20441923]
[1659289307419,0.00229132,23705.0,23704.0,0.20441923]
[1659289307839,0.00229132,23705.0,23704.0,0.55441923]
[1659289308353,0.00229132,23705.0,23704.0,0.49341923]
[1659289309066,0.00229132,23705.0,23704.0,0.25441923]
[1659289309981,0.00229132,23705.0,23704.0,0.55441923]
[1659289310188,0.00229132,23705.0,23704.0,0.49341923]
[1659289310905,0.00229132,23705.0,23704.0,0.55441923]
[1659289312279,0.00229132,23705.0,23704.0,0.56706271]
[1659289312280,0.53908728,23705.0,23704.0,0.56706271]
[1659289312971,0.53908728,23705.0,23704.0,0.57606271]
[1659289314384,0.53908728,23705.0,23704.0,0.50606271]
[1659289315072,0.53908728,23705.0,23704.0,0.57606271]
[1659289315285,0.50809128,23705.0,23704.0,0.57606271]
[1659289315527,0.48275361,23705.0,23704.0,1.82083404]
[1659289315743,0.45275261,23705.0,23704.0,1.83496674]
[1659289316227,0.44275261,23705.0,23704.0,2.16496674]
[1659289316464,0.44396108,23705.0,23704.0,2.16496674]
[1659289316893,0.44396108,23705.0,23704.0,2.24496674]
[1659289318380,0.44396108,23705.0,23704.0,2.16496674]
[1659289319032,0.44396108,23705.0,23704.0,1.79496674]
[1659289319257,0.44396108,23705.0,23704.0,1.76819056]
[1659289320134,0.44396108,23705.0,23704.0,1.78232195]
[1659289320302,0.44396108,23705.0,23704.0,1.70232195]
[1659289320525,0.41445813,23705.0,23704.0,1.30232195]
[1659289320744,0.41687941,23705.0,23704.0,0.65603556]
[1659289320938,0.41687941,23705.0,23704.0,0.61567656]
[1659289321713,0.41566877,23705.0,23704.0,0.61567656]
[1659289322381,0.41566877,23705.0,23704.0,0.96567656]
[1659289323038,0.37482277,23705.0,23704.0,1.76715156]
[1659289323269,0.37482277,23705.0,23704.0,1.81715156]
[1659289323480,0.37482277,23705.0,23704.0,1.84392682]
[1659289323691,0.37482277,23705.0,23704.0,1.82979504]
[1659289324422,0.37482277,23705.0,23704.0,1.70079504]
[1659289325086,0.37482277,23705.0,23704.0,2.18192485]
[1659289325305,0.37482277,23705.0,23704.0,2.16779504]
[1659289326246,0.37482277,23705.0,23704.0,2.11492394]
[1659289326697,0.37482277,23705.0,23704.0,3.59457538]
[1659289326914,0.37482277,23705.0,23704.0,3.67457538]
[1659289328196,0.37482277,23705.0,23704.0,3.59457538]
[1659289328933,0.37482277,23705.0,23704.0,3.5819319]
[1659289329123,0.37482277,23705.0,23704.0,3.6619319]
[1659289329347,0.37482277,23705.0,23704.0,3.2619319]
[1659289329610,0.37482277,23705.0,23704.0,2.16815156]
[1659289329816,0.37482277,23705.0,23704.0,2.28079504]
[1659289329817,0.34365677,23705.0,23704.0,2.28079504]
[1659289330054,0.34365677,23705.0,23704.0,2.19492367]
[1659289330273,0.34365677,23705.0,23704.0,2.11492367]
[1659289330495,0.34365677,23705.0,23704.0,2.10079504]
[1659289330966,0.34365677,23705.0,23704.0,2.16479504]
[1659289331183,0.31693475,23710.0,23709.0,2.21351868]
[1659289331422,1.15367142,23717.0,23716.0,0.05493668]
[1659289331657,0.654,23717.0,23716.0,0.05493668]
[1659289331887,0.54,23719.0,23718.0,0.05493668]
[1659289332122,6.011e-05,23724.0,23718.0,0.18233668]
[1659289332355,6.011e-05,23724.0,23723.0,0.1275]
[1659289333064,6.011e-05,23724.0,23723.0,0.1685]
[1659289334183,6.011e-05,23724.0,23723.0,0.1275]
[1659289335044,0.03473327,23724.0,23723.0,0.1685]
[1659289335268,6.011e-05,23724.0,23723.0,0.1685]
[1659289335950,0.03473327,23724.0,23723.0,0.1685]
[1659289336193,0.00127095,23724.0,23723.0,0.1685]
[1659289336406,0.00127095,23724.0,23723.0,0.1275]
[1659289336881,0.00127095,23724.0,23723.0,0.1635]
[1659289337101,0.00127095,23724.0,23723.0,0.4635]
[1659289337835,0.00127095,23724.0,23723.0,0.46972412]
[1659289338278,0.00127095,23724.0,23723.0,0.87297194]
[1659289339032,0.00127095,23724.0,23723.0,0.92797194]
[1659289340239,0.00127095,23724.0,23723.0,0.87297194]
[1659289340492,0.00127095,23724.0,23723.0,0.15949049]
[1659289341181,0.00127095,23724.0,23723.0,0.21549049]
[1659289342313,0.00127095,23724.0,23723.0,0.15949049]
[1659289342995,0.00127095,23724.0,23723.0,0.23849049]
[1659289344389,0.00127095,23724.0,23723.0,0.15949049]
[1659289345085,0.00127095,23724.0,23723.0,0.20449049]
[1659289345762,0.00127095,23724.0,23723.0,0.50449049]
[1659289346232,0.00127095,23724.0,23723.0,0.45949049]
[1659289346873,0.00127095,23724.0,23723.0,0.20449049]
[1659289348272,0.00127095,23724.0,23723.0,0.61174782]
[1659289348495,0.00127095,23724.0,23723.0,0.8793913]
[1659289348945,0.00127095,23724.0,23723.0,0.93474782]
[1659289350787,0.00127095,23724.0,23723.0,0.86674782]
[1659289350997,0.00127095,23724.0,23723.0,0.92297194]
[1659289351463,0.00127095,23724.0,23723.0,0.93561542]
[1659289351913,0.00127095,23724.0,23723.0,0.98561542]
[1659289352401,0.001,23728.0,23723.0,0.98561542]
[1659289352402,1.817,23735.0,23726.0,1.25285932]
[1659289352664,1.817,23735.0,23730.0,0.1275]
[1659289352903,1.817,23735.0,23730.0,0.493245]
[1659289353122,1.817,23735.0,23730.0,0.793245]
[1659289354242,1.817,23735.0,23730.0,0.79930625]
[1659289354929,1.817,23735.0,23730.0,0.80530625]
[1659289355207,1.817,23735.0,23730.0,0.75530625]
[1659289355427,1.817,23735.0,23730.0,0.80530625]
[1659289355636,1.817,23735.0,23730.0,0.59565631]
[1659289355867,1.817,23735.0,23730.0,0.29565631]
[1659289356345,0.0009334,23731.0,23730.0,0.28966531]
[1659289356831,0.0009334,23731.0,23730.0,0.25223511]
[1659289357064,0.0009334,23731.0,23730.0,0.25823511]
[1659289357501,0.0009334,23731.0,23730.0,0.15297811]
[1659289357936,0.0009334,23731.0,23730.0,0.18424161]
[1659289358378,0.40819073,23731.0,23730.0,0.17824161]
[1659289358589,0.71214873,23731.0,23730.0,0.05074161]
[1659289359071,0.71214873,23731.0,23730.0,0.05674161]
[1659289359963,1.01214873,23731.0,23730.0,0.05674161]
[1659289360454,1.01214873,23731.0,23730.0,0.05074161]
[1659289361332,1.04682189,23731.0,23730.0,0.05074161]
[1659289362317,1.01214873,23731.0,23730.0,0.05074161]
[1659289362527,0.71214873,23731.0,23730.0,0.05074161]
[1659289362987,1.01214873,23731.0,23730.0,0.05074161]
[1659289363909,0.71214873,23731.0,23730.0,0.05074161]
[1659289364146,1.01214873,23731.0,23730.0,0.05074161]
[1659289364917,0.71214873,23731.0,23730.0,0.05074161]
[1659289366215,0.71208213,23731.0,23730.0,0.05074161]
[1659289367043,0.74675529,23731.0,23730.0,0.05074161]
[1659289367269,0.71208213,23731.0,23730.0,0.05074161]
[1659289368071,0.74675529,23731.0,23730.0,0.05074161]
[1659289368765,0.71208213,23731.0,23730.0,0.05074161]
[1659289370101,0.40812413,23731.0,23730.0,0.05074161]
[1659289370326,0.40812413,23731.0,23730.0,0.17824161]
[1659289370624,0.40812413,23731.0,23730.0,0.28350161]
[1659289370841,0.40812413,23731.0,23730.0,0.58554566]
[1659289371287,0.40812413,23731.0,23730.0,0.48028566]
[1659289371502,0.40812413,23731.0,23730.0,0.58350261]
[1659289371955,0.40812413,23731.0,23730.0,0.48028566]
[1659289372388,0.0008668,23731.0,23730.0,0.47824161]
[1659289372799,0.0008668,23731.0,23730.0,0.63350261]
[1659289373019,0.0008668,23731.0,23730.0,0.63838918]
[1659289373686,0.0008668,23731.0,23730.0,0.58838918]
[1659289373893,0.0008668,23731.0,23730.0,0.48312818]
[1659289374351,0.0008668,23731.0,23730.0,0.47824161]
[1659289374539,0.0008668,23731.0,23730.0,0.17824161]
[1659289374989,0.5391805,23731.0,23730.0,0.17824161]
[1659289375198,0.5391805,23731.0,23730.0,0.58839118]
[1659289375404,0.8431385,23731.0,23730.0,0.47824161]
[1659289375924,0.5391805,23731.0,23730.0,0.47824161]
[1659289376369,0.83043114,23731.0,23730.0,0.17824161]
[1659289376633,0.83043114,23731.0,23730.0,0.18507006]
[1659289376872,1.23768847,23731.0,23730.0,0.17446161]
[1659289377077,1.53768847,23731.0,23730.0,0.04696161]
[1659289377293,1.53768847,23731.0,23730.0,0.05048157]
[1659289378489,1.53768847,23731.0,23730.0,0.04697157]
[1659289378930,1.53768847,23731.0,23730.0,0.03440177]
[1659289379172,1.53768847,23731.0,23730.0,0.03439235]
[1659289379393,1.53768847,23731.0,23724.0,0.13983616]
[1659289379594,0.71121533,23730.0,23724.0,0.13983616]
[1659289379819,1.01121533,23729.0,23724.0,0.13983616]
[1659289380037,0.71121533,23728.0,23724.0,0.13983616]
[1659289380299,0.71121533,23727.0,23724.0,0.13983616]
[1659289380521,0.40725733,23726.0,23724.0,0.13983616]
[1659289380997,0.40725733,23726.0,23724.0,0.16283616]
[1659289381223,0.44193049,23726.0,23724.0,0.16673616]
[1659289381438,0.40725733,23725.0,23724.0,0.16673616]
[1659289381683,0.40725733,23725.0,23724.0,0.46673616]
[1659289381917,1.01121533,23725.0,23724.0,0.16673616]
[1659289382114,0.71121533,23725.0,23724.0,0.03933616]
[1659289382376,0.74588849,23725.0,23724.0,0.03933616]
[1659289382872,0.74588849,23725.0,23724.0,0.01633616]
[1659289383128,0.74588849,23725.0,23724.0,0.09533616]
[1659289384284,0.71121533,23725.0,23724.0,0.01633616]
[1659289384941,0.71121533,23725.0,23724.0,0.09533616]
[1659289385156,0.40725733,23725.0,23724.0,0.39533616]
[1659289385377,0.71121533,23725.0,23724.0,0.39533616]
[1659289385861,0.40725733,23725.0,23724.0,0.39533616]
[1659289386282,0.40725733,23725.0,23724.0,0.31633616]
[1659289386535,0.40725733,23725.0,23724.0,0.01633616]
[1659289386992,0.71121533,23725.0,23724.0,0.09533616]
[1659289387208,0.71121533,23725.0,23724.0,0.39533616]
[1659289387846,0.74588849,23725.0,23724.0,0.39533616]
[1659289388077,0.71121533,23725.0,23724.0,0.39533616]
[1659289388314,0.71121533,23725.0,23724.0,0.31633616]
[1659289388534,0.40725733,23725.0,23724.0,0.11633616]
[1659289388778,0.0013839,23726.0,23724.0,0.48425764]
[1659289389019,0.0013839,23726.0,23725.0,0.05493668]
[1659289389244,0.3,23729.0,23725.0,0.18243668]
[1659289389480,0.3,23729.0,23728.0,0.1275]
[1659289389712,0.65528846,23730.0,23728.0,0.1275]
[1659289389932,0.603958,23729.0,23728.0,0.1275]
[1659289390161,0.3,23729.0,23728.0,0.1275]
[1659289390405,0.6,23729.0,23728.0,0.1275]
[1659289390631,0.63467316,23729.0,23728.0,0.1275]
[1659289391146,0.33467316,23729.0,23728.0,0.1455]
[1659289391382,1.04588849,23729.0,23728.0,0.14983038]
[1659289392312,1.04588849,23729.0,23728.0,0.13183038]
[1659289392751,1.04588849,23729.0,23728.0,0.00433038]
[1659289392979,1.34588849,23729.0,23728.0,0.02233038]
[1659289394388,1.34588849,23729.0,23728.0,0.00433038]
[1659289395085,1.34588849,23729.0,23728.0,0.02433038]
[1659289395301,1.34588849,23729.0,23728.0,0.02]
[1659289395302,1.31121533,23729.0,23728.0,0.02]
[1659289395740,1.01121533,23729.0,23728.0,0.02]
[1659289397002,1.01121533,23729.0,23728.0,0.04]
[1659289397362,1.01121533,23729.0,23728.0,0.02]
[1659289398347,1.01121533,23729.0,23726.0,0.1275]
[1659289398348,0.303958,23728.0,23726.0,0.1275]
[1659289398564,0.653958,23727.0,23726.0,0.1275]
[1659289398796,0.35,23727.0,23726.0,0.1275]
[1659289398969,0.35,23727.0,23726.0,0.1545]
[1659289399341,0.38467316,23727.0,23726.0,0.1545]
[1659289399609,0.35,23727.0,23726.0,0.1545]
[1659289399979,0.653958,23727.0,23726.0,0.1545]
[1659289400583,0.35,23727.0,23726.0,0.1545]
[1659289400750,0.35,23727.0,23726.0,0.1275]
[1659289401179,0.653958,23727.0,23726.0,0.1625]
[1659289401383,0.35,23727.0,23726.0,0.16384458]
[1659289401716,0.35,23727.0,23726.0,0.1625]
[1659289402160,0.35,23727.0,23726.0,0.1275]
[1659289402743,0.35,23727.0,23726.0,0.12884458]
[1659289402970,0.35,23727.0,23726.0,0.16384458]
[1659289403189,0.35,23727.0,23726.0,0.16817912]
[1659289404200,0.35,23727.0,23726.0,0.13183454]
[1659289404425,0.953958,23727.0,23726.0,0.00433454]
[1659289404647,0.653958,23727.0,23726.0,0.00433454]
[1659289404878,0.653958,23727.0,23726.0,0.08433454]
[1659289406694,0.653958,23727.0,23726.0,0.00433454]
[1659289406922,0.653958,23727.0,23726.0,0.08433454]
[1659289408701,0.653958,23727.0,23726.0,0.00433454]
[1659289408941,0.653958,23727.0,23726.0,0.08333454]
[1659289409405,0.95383833,23727.0,23726.0,0.08333454]
[1659289410310,0.95383833,23727.0,23726.0,0.00433454]
[1659289410969,0.95383833,23727.0,23726.0,0.08333454]
[1659289411211,0.95383833,23727.0,23726.0,0.079]
[1659289411433,1.26972933,23727.0,23726.0,0.079]
[1659289412306,1.26972933,23727.0,23724.0,0.01243616]
[1659289412539,1.26972933,23727.0,23723.0,0.46372483]
[1659289412540,0.303958,23726.0,23723.0,0.16372483]
[1659289412750,0.64988033,23727.0,23723.0,0.16372483]
[1659289412977,0.303958,23726.0,23724.0,0.079]
[1659289413239,0.65124037,23727.0,23724.0,0.079]
[1659289413466,0.303958,23726.0,23724.0,0.079]
[1659289413684,0.303958,23725.0,23724.0,0.08289464]
[1659289413950,0.409254,23726.0,23724.0,0.08289464]
[1659289414163,0.96712337,23727.0,23723.0,0.46372483]
[1659289414164,0.303958,23725.0,23723.0,0.46372483]
[1659289414387,0.00136004,23727.0,23723.0,0.03632483]
[1659289414612,0.00136004,23727.0,23726.0,0.1274]
[1659289415280,0.30531804,23727.0,23726.0,0.1274]
[1659289416156,0.3399912,23727.0,23726.0,0.1274]
[1659289416436,0.30531804,23727.0,23726.0,0.1274]
[1659289416668,0.00136004,23727.0,23726.0,0.1274]
[1659289416875,0.00136004,23727.0,23726.0,0.1704]
[1659289417325,0.0360332,23727.0,23726.0,0.1704]
[1659289417555,0.3399912,23727.0,23726.0,0.1704]
[1659289417781,0.7452842,23727.0,23726.0,0.1704]
[1659289417999,0.3399912,23727.0,23726.0,0.1704]
[1659289418221,0.30531804,23727.0,23726.0,0.1704]
[1659289418443,0.41060804,23727.0,23726.0,0.1704]
[1659289418666,0.30531804,23727.0,23726.0,0.1274]
[1659289418893,0.00136004,23727.0,23726.0,0.1704]
[1659289419099,0.10665104,23727.0,23726.0,0.1704]
[1659289419315,0.4452822,23727.0,23726.0,0.043]
[1659289419531,0.41060904,23727.0,23726.0,0.043]
[1659289419776,0.41060904,23727.0,23726.0,0.05579917]
[1659289420259,0.41060904,23727.0,23726.0,0.01279917]
[1659289420475,0.62119904,23727.0,23725.0,0.00433579]
[1659289420706,0.303958,23726.0,23725.0,0.00433579]
[1659289421366,0.31724304,23727.0,23725.0,0.02106037]
[1659289421638,0.303958,23726.0,23725.0,0.02106037]
[1659289422531,0.30531804,23727.0,23725.0,0.02106037]
[1659289422749,0.303958,23726.0,23725.0,0.02106037]
[1659289422970,0.30531804,23727.0,23725.0,0.07606037]
[1659289423187,0.303958,23726.0,23725.0,0.07606037]
[1659289423419,0.00136004,23727.0,23725.0,0.07606037]
[1659289423652,0.303958,23726.0,23725.0,0.07606037]
[1659289423882,0.00136004,23727.0,23725.0,0.07606037]
[1659289424124,0.303958,23726.0,23725.0,0.02106037]
[1659289424341,0.10665304,23727.0,23725.0,0.02106037]
[1659289424568,0.303958,23726.0,23725.0,0.02106037]
[1659289424789,0.00136004,23727.0,23725.0,0.06806037]
[1659289425048,0.303958,23726.0,23725.0,0.06806037]
[1659289425290,0.00136004,23727.0,23725.0,0.06806037]
[1659289425519,0.303958,23726.0,23725.0,0.36806037]
[1659289425734,0.00136004,23727.0,23725.0,0.36806037]
[1659289425964,0.10665304,23727.0,23726.0,0.3]
[1659289426197,0.41061104,23727.0,23726.0,0.3]
[1659289426688,0.40697489,23727.0,23726.0,0.3]
[1659289426890,0.40697489,23727.0,23726.0,0.347]
[1659289427116,0.40831102,23727.0,23726.0,0.047]
[1659289427771,0.10435302,23727.0,23726.0,0.047]
[1659289427985,0.00133613,23727.0,23726.0,0.047]
[1659289428201,0.30529413,23727.0,23726.0,0.047]
[1659289428422,0.00133613,23727.0,23726.0,0.047]
[1659289428639,0.00133613,23727.0,23726.0,0.1745]
[1659289428867,0.64322613,23730.0,23727.0,0.05493668]
[1659289429092,0.84230714,23731.0,23727.0,0.05493668]
[1659289429093,0.41125976,23731.0,23730.0,0.05493668]
[1659289429335,0.41125976,23731.0,23730.0,0.35493668]
[1659289429336,0.38053714,23731.0,23730.0,0.35493668]
[1659289430038,0.38053714,23731.0,23730.0,0.36758016]
[1659289430268,0.38053714,23731.0,23730.0,0.35854038]
[1659289431014,0.38053714,23731.0,23730.0,0.41754038]
[1659289432052,0.38053714,23731.0,23730.0,0.11754038]
[1659289432313,0.38053714,23731.0,23730.0,0.05854038]
[1659289432953,0.38053714,23731.0,23730.0,0.11754038]
[1659289433172,0.38053714,23731.0,23730.0,0.22280338]
[1659289433399,0.38053714,23731.0,23730.0,0.11754038]
[1659289433618,0.38053714,23731.0,23730.0,0.41754038]
[1659289433838,0.38053714,23731.0,23730.0,0.41836979]
[1659289434058,0.38053714,23731.0,23730.0,0.45038111]
[1659289434282,0.38053714,23731.0,23730.0,0.39138111]
[1659289435030,0.38053714,23731.0,23730.0,0.45038111]
[1659289435491,0.38053714,23731.0,23730.0,0.15038111]
[1659289435948,0.38053714,23731.0,23730.0,0.30564311]
[1659289436189,0.38053714,23731.0,23730.0,0.51615911]
[1659289436452,0.38053714,23731.0,23730.0,0.75715911]
[1659289436926,0.38053714,23731.0,23730.0,0.81615911]
[1659289438326,0.38053714,23731.0,23730.0,0.76000417]
[1659289438967,0.38053714,23731.0,23730.0,0.84000417]
[1659289440760,0.38053714,23731.0,23730.0,0.70506749]
[1659289441001,0.38053714,23731.0,23730.0,0.76606749]
[1659289442148,0.38053714,23731.0,23730.0,0.7662749]
[1659289442387,0.38053714,23731.0,23730.0,1.11253223]
[1659289443073,0.38053714,23731.0,23730.0,1.17353223]
[1659289443515,0.38053714,23731.0,23730.0,0.7662749]
[1659289444224,0.38053714,23731.0,23730.0,0.3394969]
[1659289444479,0.38053714,23731.0,23730.0,0.0394969]
[1659289444907,0.38053714,23731.0,23730.0,0.1004969]
[1659289445370,0.38053714,23731.0,23730.0,0.10404383]
[1659289445592,0.38053714,23731.0,23730.0,0.10028949]
[1659289446330,0.38053714,23731.0,23730.0,0.04304383]
[1659289446565,0.38053714,23731.0,23730.0,0.03928949]
[1659289447041,0.38053714,23731.0,23730.0,0.10028949]
[1659289448425,0.38053714,23731.0,23730.0,0.03928949]
[1659289449100,0.38053714,23731.0,23730.0,0.09628949]
[1659289449981,0.65914047,23731.0,23730.0,0.09628949]
[1659289450195,0.35518247,23731.0,23730.0,0.09628949]
[1659289450428,0.65914047,23731.0,23730.0,0.03928949]
[1659289451087,0.65914047,23731.0,23730.0,0.10428949]
[1659289451536,0.35637459,23731.0,23730.0,0.10428949]
[1659289451773,0.66033259,23731.0,23730.0,0.10428949]
[1659289452021,0.35637459,23731.0,23730.0,0.10428949]
[1659289452354,0.66033259,23731.0,23730.0,0.10428949]
[1659289452455,0.66033259,23731.0,23730.0,0.03928949]
[1659289452907,0.35637459,23731.0,23730.0,0.03928949]
[1659289453135,0.66033259,23731.0,23730.0,0.09928949]
[1659289454019,0.66033259,23731.0,23730.0,0.09644443]
[1659289454463,0.66033259,23731.0,23730.0,0.03644443]
[1659289455095,0.66033259,23731.0,23730.0,0.09944443]
[1659289456262,0.69500575,23731.0,23730.0,0.03644443]
[1659289456699,0.66033259,23731.0,23730.0,0.03644443]